fUSD/lending_fUSD_20240409
["ID","MTS","AMOUNT","RATE_DAILY","PERIOD"]
[321987871,1712674260555,-500.0,0.00019922,2]
[321987872,1712674260565,-839.96,0.00019922,2]
[321987873,1712674260575,-782.38,0.00019922,2]
[321987874,1712674260584,-500.0,0.00019922,2]
[321987875,1712674260594,-500.0,0.00019922,2]
[321987876,1712674260604,-710.19,0.00019922,2]
[321987877,1712674260613,-998.01,0.00019922,2]
[321987878,1712674260623,-799.18,0.00019922,2]
[321987879,1712674260632,-1217.46,0.00019922,2]
[321987880,1712674260642,-10000.0,0.00019994,2]
[321987881,1712674260651,-155.49408914,0.00019998,2]
[321987882,1712674260661,-336.97793645,0.0002,2]
[321987883,1712674260671,-1254.03701596,0.0002,2]
[321987884,1712674260680,-185.78135859,0.0002,2]
[321987885,1712674260690,-1300.12345678,0.0002,2]
[321987886,1712674260699,-857.85739397,0.0002,2]
[321987887,1712674260708,-686.8681172,0.0002,2]
[321987888,1712674260718,-156.66634096,0.0002,2]
[321987889,1712674260727,-155.0,0.0002,2]
[321987890,1712674260740,-1182.45,0.0002,2]
[321987891,1712674260749,-1818.84,0.0002,2]
[321987892,1712674260758,-2025.12,0.0002,2]
[321987893,1712674260768,-595.89,0.0002,2]
[321987894,1712674260777,-1712.57,0.0002,2]
[321987895,1712674260787,-1460.5,0.0002,2]
[321987896,1712674260800,-2288.52,0.0002,2]
[321987897,1712674260812,-1415.21,0.0002,2]
[321987898,1712674260825,-4505.73,0.0002,2]
[321987899,1712674260838,-2286.59,0.0002,2]
[321987900,1712674260851,-3058.70234951,0.0002,2]
[321987901,1712674260862,-11951.03,0.0002,2]
[321987902,1712674260872,-1103.96,0.0002,2]
[321987903,1712674260884,-2504.4,0.0002,2]
[321987904,1712674260895,-3974.64257244,0.0002,2]
[321987905,1712674260907,-3610.9,0.0002,2]
[321987906,1712674260919,-1259.35,0.0002,2]
[321987907,1712674260931,-3315.94,0.0002,2]
[321987908,1712674260947,-1780.88,0.0002,2]
[321987909,1712674260959,-1616.26,0.0002,2]
[321987910,1712674260971,-1393.67,0.0002,2]
[321987911,1712674260984,-500.0,0.0002,2]
[321987912,1712674260995,-2797.41,0.0002,2]
[321987913,1712674261006,-500.0,0.0002,2]
[321987914,1712674261018,-1456.23,0.0002,2]
[321987915,1712674261030,-500.0,0.00020091,2]
[321987916,1712674261041,-500.0,0.00020091,2]
[321987917,1712674261052,-500.0,0.00020091,2]
[321987918,1712674261063,-500.0,0.00020091,2]
[321987919,1712674261075,-500.0,0.00020091,2]
[321987920,1712674261086,-500.0,0.00020091,2]
[321987921,1712674261099,-500.0,0.00020091,2]
[321987922,1712674261111,-874.36,0.00020091,2]
[321987923,1712674261122,-691.8,0.00020091,2]
[321987924,1712674261132,-500.0,0.00020091,2]
[321987925,1712674261142,-500.0,0.00020091,2]
[321987926,1712674261156,-500.0,0.00020091,2]
[321987927,1712674261168,-500.0,0.00020091,2]
[321987928,1712674261179,-500.0,0.00020091,2]
[321987929,1712674261193,-500.0,0.00020091,2]
[321987930,1712674261204,-6036.2,0.00020091,2]
[321987931,1712674261215,-500.0,0.00020091,2]
[321987932,1712674261226,-3378.52,0.00020091,2]
[321987933,1712674261243,-500.0,0.00020091,2]
[321987934,1712674261257,-3763.34,0.00020091,2]
[321987935,1712674261269,-500.0,0.00020091,2]
[321987936,1712674261280,-937.12,0.00020091,2]
[321987937,1712674261292,-500.0,0.00020091,2]
[321987938,1712674261305,-1090.12,0.00020091,2]
[321987939,1712674261317,-378.70914352,0.00020091,2]
[321987940,1712674261329,-1263.08,0.00020091,2]
[321987941,1712674261342,-500.0,0.00020091,2]
[321987942,1712674261353,-500.0,0.00020091,2]
[321987943,1712674261365,-1861.21,0.00020091,2]
[321987944,1712674261375,-500.0,0.00020091,2]
[321987945,1712674261386,-1623.73,0.00020091,2]
[321987946,1712674261396,-500.0,0.00020091,2]
[321987947,1712674261405,-32582.93,0.00020091,2]
[321987948,1712674261416,-500.0,0.00020091,2]
[321987949,1712674261428,-500.0,0.00020091,2]
[321987950,1712674261440,-1532.52,0.00020091,2]
[321987951,1712674261450,-500.0,0.00020091,2]
[321987952,1712674261461,-2758.67,0.00020091,2]
[321987953,1712674261474,-3284.97,0.00020091,2]
[321987954,1712674261490,-500.0,0.00020091,2]
[321987955,1712674261505,-500.0,0.00020091,2]
[321987956,1712674261521,-2962.97,0.00020091,2]
[321987957,1712674261531,-150.0,0.00020091,2]
[321987958,1712674261542,-500.0,0.00020091,2]
[321987959,1712674261553,-500.0,0.00020091,2]
[321987960,1712674261564,-500.0,0.00020091,2]
[321987961,1712674261575,-1957.1,0.00020091,2]
[321987962,1712674261586,-500.0,0.00020091,2]
[321987963,1712674261596,-9806.85,0.00020091,2]
[321987964,1712674261607,-2135.89,0.00020091,2]
[321987965,1712674261619,-500.0,0.00020091,2]
[321987966,1712674261630,-500.0,0.00020091,2]
[321987967,1712674261640,-500.0,0.00020091,2]
[321987968,1712674261652,-1797.01,0.00020091,2]
[321987969,1712674261662,-4410.97,0.00020091,2]
[321987970,1712674261673,-1170.81,0.00020091,2]
[321987971,1712674261683,-500.0,0.00020091,2]
[321987972,1712674261695,-2049.05,0.00020091,2]
[321987973,1712674261707,-1553.38,0.00020091,2]
[321987974,1712674261718,-500.0,0.00020091,2]
[321987975,1712674261729,-4210.12,0.00020091,2]
[321987976,1712674261748,-578.69,0.00020091,2]
[321987977,1712674261760,-3769.19,0.00020091,2]
[321987978,1712674261771,-500.0,0.00020091,2]
[321987979,1712674261782,-500.0,0.00020091,2]
[321987980,1712674261793,-500.0,0.00020091,2]
[321987981,1712674261808,-500.0,0.00020091,2]
[321987982,1712674261819,-500.0,0.00020091,2]
[321987983,1712674261830,-163.62951672,0.00020091,2]
[321987984,1712674261841,-500.0,0.00020093,2]
[321987985,1712674261851,-500.0,0.00020093,2]
[321987986,1712674261862,-500.0,0.00020093,2]
[321987987,1712674261874,-500.0,0.00020093,2]
[321987988,1712674261885,-500.0,0.00020093,2]
[321987989,1712674261896,-842.95,0.00020093,2]
[321987990,1712674261908,-500.0,0.00020093,2]
[321987991,1712674261920,-500.0,0.00020093,2]
[321987992,1712674261932,-617.66,0.00020093,2]
[321987993,1712674261943,-897.73,0.00020093,2]
[321987994,1712674261959,-700.34,0.00020093,2]
[321987995,1712674261970,-805.62,0.00020093,2]
[321987996,1712674261983,-639.45,0.00020093,2]
[321987997,1712674261997,-500.0,0.00020093,2]
[321987998,1712674262008,-500.0,0.00020093,2]
[321987999,1712674262018,-500.0,0.00020093,2]
[321988000,1712674262030,-833.8,0.00020093,2]
[321988001,1712674262042,-969.1,0.00020093,2]
[321988002,1712674262053,-500.0,0.00020093,2]
[321988003,1712674262063,-916.08,0.00020093,2]
[321988004,1712674262074,-500.0,0.00020093,2]
[321988005,1712674262085,-672.83,0.00020093,2]
[321988006,1712674262096,-624.08,0.00020093,2]
[321988007,1712674262107,-808.8,0.00020093,2]
[321988008,1712674262118,-500.0,0.00020093,2]
[321988009,1712674262129,-692.85,0.00020093,2]
[321988010,1712674262139,-500.0,0.00020093,2]
[321988011,1712674262150,-782.58,0.00020093,2]
[321988012,1712674262160,-712.41,0.00020093,2]
[321988013,1712674262171,-500.0,0.00020093,2]
[321988014,1712674262182,-500.0,0.00020093,2]
[321988015,1712674262192,-722.61,0.00020093,2]
[321988016,1712674262203,-632.47,0.00020093,2]
[321988017,1712674262214,-593.62,0.00020093,2]
[321988018,1712674262225,-500.0,0.00020093,2]
[321988019,1712674262243,-1124.6,0.00020093,2]
[321988020,1712674262254,-1750.14,0.00020093,2]
[321988021,1712674262265,-695.99,0.00020093,2]
[321988022,1712674262276,-500.0,0.00020093,2]
[321988023,1712674262287,-500.0,0.00020093,2]
[321988024,1712674262298,-592.75,0.00020093,2]
[321988025,1712674262309,-1070.69,0.00020093,2]
[321988026,1712674262319,-500.0,0.00020093,2]
[321988027,1712674262330,-338.85,0.00020093,2]
[321988028,1712674262341,-1233.11,0.00020093,2]
[321988029,1712674262352,-798.38,0.00020093,2]
[321988030,1712674262363,-2517.11,0.00020093,2]
[321988031,1712674262374,-500.0,0.00020093,2]
[321988032,1712674262384,-358.13,0.00020093,2]
[321988033,1712674262395,-881.79,0.00020093,2]
[321988034,1712674262405,-967.92,0.00020093,2]
[321988035,1712674262416,-1542.87,0.00020093,2]
[321988036,1712674262427,-4055.53,0.00020093,2]
[321988037,1712674262438,-1278.07,0.00020093,2]
[321988038,1712674262449,-636.28,0.00020093,2]
[321988039,1712674262459,-1650.72,0.00020093,2]
[321988040,1712674262470,-759.09,0.00020093,2]
[321988041,1712674262487,-718.47,0.00020093,2]
[321988042,1712674262498,-922.43,0.00020093,2]
[321988043,1712674262508,-789.1,0.00020093,2]
[321988044,1712674262518,-2452.78,0.00020093,2]
[321988045,1712674262529,-1037.91,0.00020093,2]
[321988046,1712674262540,-2600.08,0.00020093,2]
[321988047,1712674262551,-6200.47,0.00020093,2]
[321988048,1712674262562,-1423.9,0.00020093,2]
[321988049,1712674262573,-1921.2,0.00020093,2]
[321988050,1712674262585,-2792.91,0.00020093,2]
[321988051,1712674262596,-4077.97,0.00020093,2]
[321988052,1712674262608,-5797.14,0.00020093,2]
[321988053,1712674262619,-5906.39,0.00020093,2]
[321988054,1712674262630,-1079.17,0.00020093,2]
[321988055,1712674262640,-500.0,0.00020093,2]
[321988056,1712674262652,-3361.33,0.00020093,2]
[321988057,1712674262662,-1284.77,0.00020093,2]
[321988058,1712674262673,-5886.08,0.00020093,2]
[321988059,1712674262687,-724.57,0.00020093,2]
[321988060,1712674262697,-1203.77995443,0.00020093,2]
[321988061,1712674263220,-500.0,0.00019178,2]
[321988062,1712674263233,-1241.855,0.00020093,2]
[321988063,1712674263246,-6050.91504557,0.00020093,2]
[321988064,1712674263257,-1494.12595552,0.00020093,2]
[321988065,1712674263364,-865.74727561,0.00020093,2]
[321988066,1712674263376,-1070.81676887,0.00020093,2]
[321988067,1712674263386,-1816.11,0.00020093,2]
[321988068,1712674263396,-1112.14,0.00020093,2]
[321988069,1712674263405,-3266.08811307,0.00020093,2]
[321988070,1712674263417,-1336.17433799,0.00020093,2]
[321988071,1712674263429,-870.000002,0.00020093,2]
[321988072,1712674263442,-327.43754694,0.00020093,2]
[321988073,1712674263452,-500.0,0.00020093,2]
[321988074,1712674263463,-3537.97,0.00020093,2]
[321988075,1712674263473,-3016.08,0.00020093,2]
[321988076,1712674263487,-500.0,0.00020093,2]
[321988077,1712674263497,-2166.03,0.00020093,2]
[321988078,1712674263509,-2170.75,0.00020093,2]
[321988079,1712674263520,-2793.14,0.00020093,2]
[321988080,1712674263531,-3131.87,0.00020093,2]
[321988081,1712674263542,-500.0,0.00020093,2]
[321988082,1712674263553,-2135.84,0.00020093,2]
[321988083,1712674263563,-12126.76,0.00020093,2]
[321988084,1712674263574,-508.37,0.00020093,2]
[321988085,1712674263584,-84.49370623,0.00020093,2]
[321988086,1712674263598,-2255.54964618,0.00020093,2]
[321988087,1712674263632,-500.0,0.00019271,2]
[321988088,1712674264243,-6928.90664759,0.00020093,2]
[321988089,1712674264271,-3108.86,0.00020093,2]
[321988090,1712674264294,-962.18,0.00020093,2]
[321988091,1712674264312,-1005.23,0.00020093,2]
[321988092,1712674264321,-28103.17,0.00020093,2]
[321988093,1712674264330,-500.0,0.00020093,2]
[321988094,1712674264339,-2891.01,0.00020093,2]
[321988095,1712674264348,-968.9,0.00020093,2]
[321988096,1712674264358,-1530.15,0.00020093,2]
[321988097,1712674264367,-1170.72,0.00020093,2]
[321988098,1712674264377,-731.76,0.00020093,2]
[321988099,1712674264386,-739.24,0.00020093,2]
[321988100,1712674264395,-1130.64,0.00020093,2]
[321988101,1712674264405,-1001.01,0.00020093,2]
[321988102,1712674264414,-500.0,0.00020093,2]
[321988103,1712674264423,-500.0,0.00020094,2]
[321988104,1712674264432,-500.0,0.00020094,2]
[321988105,1712674264442,-500.0,0.00020094,2]
[321988106,1712674264451,-500.0,0.00020094,2]
[321988107,1712674264461,-500.0,0.00020094,2]
[321988108,1712674264470,-500.0,0.00020094,2]
[321988109,1712674264479,-500.0,0.00020094,2]
[321988110,1712674264490,-289.39586246,0.00020094,2]
[321988111,1712674264498,-528.02,0.00020094,2]
[321988112,1712674264508,-559.25,0.00020094,2]
[321988113,1712674264518,-500.0,0.00020094,2]
[321988114,1712674264529,-702.59,0.00020094,2]
[321988115,1712674264538,-500.0,0.00020094,2]
[321988116,1712674264548,-464.58970572,0.00020094,2]
[321988117,1712674264558,-556.85,0.00020094,2]
[321988118,1712674264568,-500.0,0.00020094,2]
[321988119,1712674264579,-500.0,0.00020094,2]
[321988120,1712674264589,-500.0,0.00020094,2]
[321988121,1712674264598,-500.0,0.00020094,2]
[321988122,1712674264607,-500.0,0.00020094,2]
[321988123,1712674264617,-573.13473707,0.00020094,2]
[321988124,1712674264627,-500.0,0.00020094,2]
[321988125,1712674264636,-500.0,0.00020094,2]
[321988126,1712674264646,-581.29,0.00020094,2]
[321988127,1712674264655,-500.0,0.00020094,2]
[321988128,1712674264664,-500.0,0.00020094,2]
[321988129,1712674264673,-500.0,0.00020094,2]
[321988130,1712674264683,-500.65,0.00020094,2]
[321988131,1712674264692,-500.0,0.00020094,2]
[321988132,1712674264702,-500.0,0.00020094,2]
[321988133,1712674264711,-502.57,0.00020094,2]
[321988134,1712674264720,-500.0,0.00020094,2]
[321988135,1712674264730,-665.51,0.00020094,2]
[321988136,1712674264744,-839.35,0.00020094,2]
[321988137,1712674264753,-500.0,0.00020094,2]
[321988138,1712674264763,-500.0,0.00020094,2]
[321988139,1712674264772,-500.0,0.00020094,2]
[321988140,1712674264781,-500.0,0.00020094,2]
[321988141,1712674264789,-500.0,0.00020094,2]
[321988142,1712674264798,-500.0,0.00020094,2]
[321988143,1712674264808,-500.0,0.00020094,2]
[321988144,1712674264816,-500.0,0.00020094,2]
[321988145,1712674264825,-768.05,0.00020094,2]
[321988146,1712674264833,-500.0,0.00020094,2]
[321988147,1712674264843,-500.0,0.00020094,2]
[321988148,1712674264852,-500.0,0.00020094,2]
[321988149,1712674264862,-587.68,0.00020094,2]
[321988150,1712674264871,-500.0,0.00020094,2]
[321988151,1712674264881,-727.92,0.00020094,2]
[321988152,1712674264890,-500.0,0.00020094,2]
[321988153,1712674264899,-500.0,0.00020094,2]
[321988154,1712674264911,-500.0,0.00020094,2]
[321988155,1712674264920,-620.22,0.00020094,2]
[321988156,1712674264930,-500.0,0.00020094,2]
[321988157,1712674264943,-500.0,0.00020094,2]
[321988158,1712674264952,-520.31,0.00020094,2]
[321988159,1712674264962,-500.0,0.00020094,2]
[321988160,1712674264971,-500.0,0.00020094,2]
[321988161,1712674264986,-500.0,0.00020094,2]
[321988162,1712674264995,-550.68,0.00020094,2]
[321988163,1712674265005,-1218.05,0.00020094,2]
[321988164,1712674265014,-500.0,0.00020094,2]
[321988165,1712674265024,-500.0,0.00020094,2]
[321988166,1712674265034,-500.0,0.00020094,2]
[321988167,1712674265044,-500.0,0.00020094,2]
[321988168,1712674265053,-500.0,0.00020094,2]
[321988169,1712674265063,-553.65,0.00020094,2]
[321988170,1712674265074,-750.58,0.00020094,2]
[321988171,1712674265084,-500.0,0.00020094,2]
[321988172,1712674265095,-733.34,0.00020094,2]
[321988173,1712674265106,-500.0,0.00020094,2]
[321988174,1712674265117,-507.35,0.00020094,2]
[321988175,1712674265128,-500.0,0.00020094,2]
[321988176,1712674265138,-967.27,0.00020094,2]
[321988177,1712674265148,-500.0,0.00020094,2]
[321988178,1712674265158,-547.31,0.00020094,2]
[321988179,1712674265168,-711.65,0.00020094,2]
[321988180,1712674265178,-324.70516731,0.00020094,2]
[321988181,1712674265188,-539.29,0.00020094,2]
[321988182,1712674265197,-500.0,0.00020094,2]
[321988183,1712674265206,-783.39,0.00020094,2]
[321988184,1712674265216,-500.0,0.00020094,2]
[321988185,1712674265225,-479.59483909,0.00020094,2]
[321988186,1712674265242,-500.0,0.00020094,2]
[321988187,1712674265251,-500.0,0.00020094,2]
[321988188,1712674265261,-500.0,0.00020094,2]
[321988189,1712674265270,-500.0,0.00020094,2]
[321988190,1712674265280,-500.0,0.00020094,2]
[321988191,1712674265289,-678.2,0.00020094,2]
[321988192,1712674265299,-500.0,0.00020094,2]
[321988193,1712674265308,-500.0,0.00020094,2]
[321988194,1712674265318,-703.55,0.00020094,2]
[321988195,1712674265328,-552.05,0.00020094,2]
[321988196,1712674265337,-500.0,0.00020094,2]
[321988197,1712674265346,-500.0,0.00020094,2]
[321988198,1712674265356,-500.0,0.00020094,2]
[321988199,1712674265366,-809.79,0.00020094,2]
[321988200,1712674265376,-680.22,0.00020094,2]
[321988201,1712674265385,-653.3,0.00020094,2]
[321988202,1712674265395,-500.0,0.00020094,2]
[321988203,1712674265405,-500.0,0.00020094,2]
[321988204,1712674265415,-507.29,0.00020094,2]
[321988205,1712674265425,-500.0,0.00020094,2]
[321988206,1712674265435,-903.8,0.00020094,2]
[321988207,1712674265445,-1568.58,0.00020094,2]
[321988208,1712674265455,-649.28,0.00020094,2]
[321988209,1712674265465,-547.5,0.00020094,2]
[321988210,1712674265476,-500.0,0.00020094,2]
[321988211,1712674265488,-500.0,0.00020094,2]
[321988212,1712674265498,-500.0,0.00020094,2]
[321988213,1712674265509,-500.0,0.00020094,2]
[321988214,1712674265519,-1047.68,0.00020094,2]
[321988215,1712674265529,-500.0,0.00020094,2]
[321988216,1712674265538,-1838.26,0.00020094,2]
[321988217,1712674265548,-500.0,0.00020094,2]
[321988218,1712674265558,-2093.46,0.00020094,2]
[321988219,1712674265568,-665.46,0.00020094,2]
[321988220,1712674265579,-500.0,0.00020094,2]
[321988221,1712674265588,-517.31,0.00020094,2]
[321988222,1712674265598,-2147.22,0.00020094,2]
[321988223,1712674265608,-500.0,0.00020094,2]
[321988224,1712674265619,-500.0,0.00020094,2]
[321988225,1712674265630,-2080.77,0.00020094,2]
[321988226,1712674265640,-500.0,0.00020094,2]
[321988227,1712674265650,-611.62,0.00020094,2]
[321988228,1712674265660,-1190.95,0.00020094,2]
[321988229,1712674265671,-642.96,0.00020094,2]
[321988230,1712674265681,-500.0,0.00020094,2]
[321988231,1712674265691,-3370.62,0.00020094,2]
[321988232,1712674265701,-788.21,0.00020094,2]
[321988233,1712674265711,-2491.81,0.00020094,2]
[321988234,1712674265721,-637.6,0.00020094,2]
[321988235,1712674265734,-500.0,0.00020094,2]
[321988236,1712674265745,-1120.41,0.00020094,2]
[321988237,1712674265755,-28284.14,0.00020094,2]
[321988238,1712674265764,-500.0,0.00020094,2]
[321988239,1712674265775,-1040.0,0.00020094,2]
[321988240,1712674265785,-500.0,0.00020094,2]
[321988241,1712674265796,-690.25,0.00020094,2]
[321988242,1712674265806,-500.0,0.00020094,2]
[321988243,1712674265816,-653.93,0.00020094,2]
[321988244,1712674265827,-6681.82,0.00020094,2]
[321988245,1712674265838,-500.0,0.00020094,2]
[321988246,1712674265848,-825.82,0.00020094,2]
[321988247,1712674265858,-500.0,0.00020094,2]
[321988248,1712674265868,-500.0,0.00020094,2]
[321988249,1712674265877,-500.0,0.00020094,2]
[321988250,1712674265887,-500.0,0.00020094,2]
[321988251,1712674265897,-500.0,0.00020094,2]
[321988252,1712674265908,-522.52,0.00020094,2]
[321988253,1712674265918,-500.0,0.00020094,2]
[321988254,1712674265928,-1336.33,0.00020094,2]
[321988255,1712674265938,-500.0,0.00020094,2]
[321988256,1712674265948,-2456.8,0.00020094,2]
[321988257,1712674265962,-500.0,0.00020094,2]
[321988258,1712674265971,-591.45,0.00020094,2]
[321988259,1712674265983,-500.0,0.00020094,2]
[321988260,1712674265993,-750.33,0.00020094,2]
[321988261,1712674266002,-25335.88,0.00020094,2]
[321988262,1712674266011,-500.0,0.00020094,2]
[321988263,1712674266020,-5449.32,0.00020094,2]
[321988264,1712674266029,-500.0,0.00020094,2]
[321988265,1712674266039,-1941.86,0.00020094,2]
[321988266,1712674266048,-1188.17,0.00020094,2]
[321988267,1712674266058,-671.65,0.00020094,2]
[321988268,1712674266068,-500.0,0.00020094,2]
[321988269,1712674266078,-532.4,0.00020094,2]
[321988270,1712674266087,-1567.94,0.00020094,2]
[321988271,1712674266097,-1504.3,0.00020094,2]
[321988272,1712674266106,-500.0,0.00020094,2]
[321988273,1712674266116,-500.0,0.00020094,2]
[321988274,1712674266125,-2247.8,0.00020094,2]
[321988275,1712674266135,-500.0,0.00020094,2]
[321988276,1712674266146,-2290.94,0.00020094,2]
[321988277,1712674266156,-845.45,0.00020094,2]
[321988278,1712674266166,-500.0,0.00020094,2]
[321988279,1712674266176,-500.0,0.00020094,2]
[321988280,1712674266186,-1058.37,0.00020094,2]
[321988281,1712674266196,-5394.8,0.00020094,2]
[321988282,1712674266206,-739.57,0.00020094,2]
[321988283,1712674266217,-596.77,0.00020094,2]
[321988284,1712674266227,-796.64,0.00020094,2]
[321988285,1712674266242,-533.26,0.00020094,2]
[321988286,1712674266252,-1159.74,0.00020094,2]
[321988287,1712674266262,-674.14,0.00020094,2]
[321988288,1712674266273,-500.0,0.00020094,2]
[321988289,1712674266284,-955.98,0.00020094,2]
[321988290,1712674266294,-662.17,0.00020094,2]
[321988291,1712674266305,-500.0,0.00020094,2]
[321988292,1712674266315,-500.0,0.00020094,2]
[321988293,1712674266325,-42744.42176779,0.00020112,2]
[321988294,1712674266335,-2064.62,0.00020194,2]
[321988295,1712674266344,-1044.56,0.00020194,2]
[321988296,1712674266354,-500.0,0.00020194,2]
[321988297,1712674266364,-2161.49,0.00020194,2]
[321988298,1712674266374,-3099.5,0.00020194,2]
[321988299,1712674266384,-1872.56,0.00020194,2]
[321988300,1712674266394,-2988.29,0.00020194,2]
[321988301,1712674266404,-1990.94,0.00020194,2]
[321988302,1712674266414,-1319.66,0.00020194,2]
[321988303,1712674266423,-8699.85,0.00020194,2]
[321988304,1712674266433,-1796.89,0.00020194,2]
[321988305,1712674266444,-1485.3,0.00020194,2]
[321988306,1712674266454,-2374.35,0.00020194,2]
[321988307,1712674266464,-1678.5,0.00020194,2]
[321988308,1712674266474,-2478.4,0.00020194,2]
[321988309,1712674266491,-2388.46,0.00020194,2]
[321988310,1712674266501,-500.0,0.00020195,2]
[321988311,1712674266511,-500.0,0.00020195,2]
[321988312,1712674266521,-500.0,0.00020195,2]
[321988313,1712674266532,-500.0,0.00020195,2]
[321988314,1712674266542,-500.0,0.00020195,2]
[321988315,1712674266552,-500.0,0.00020195,2]
[321988316,1712674266563,-618.07123065,0.00020195,2]
[321988317,1712674266573,-546.15,0.00020195,2]
[321988318,1712674266584,-500.0,0.00020195,2]
[321988319,1712674266594,-500.0,0.00020195,2]
[321988320,1712674266604,-500.0,0.00020195,2]
[321988321,1712674266615,-500.0,0.00020195,2]
[321988322,1712674266624,-500.0,0.00020195,2]
[321988323,1712674266635,-500.0,0.00020195,2]
[321988324,1712674266644,-500.0,0.00020195,2]
[321988325,1712674266654,-867.67,0.00020195,2]
[321988326,1712674266665,-500.0,0.00020195,2]
[321988327,1712674266675,-500.0,0.00020195,2]
[321988328,1712674266685,-500.0,0.00020195,2]
[321988329,1712674266695,-693.89,0.00020195,2]
[321988330,1712674266710,-500.0,0.00020195,2]
[321988331,1712674266721,-500.0,0.00020195,2]
[321988332,1712674266734,-1377.78,0.00020195,2]
[321988333,1712674266745,-500.0,0.00020195,2]
[321988334,1712674266755,-500.0,0.00020195,2]
[321988335,1712674266765,-494.41737334,0.00020195,2]
[321988336,1712674266775,-500.0,0.00020195,2]
[321988337,1712674266786,-996.33,0.00020195,2]
[321988338,1712674266797,-1242.33,0.00020195,2]
[321988339,1712674266807,-633.54,0.00020195,2]
[321988340,1712674266816,-500.0,0.00020195,2]
[321988341,1712674266826,-995.86,0.00020195,2]
[321988342,1712674266835,-677.51,0.00020195,2]
[321988343,1712674266845,-968.13,0.00020195,2]
[321988344,1712674266854,-500.0,0.00020195,2]
[321988345,1712674266863,-722.49,0.00020195,2]
[321988346,1712674266872,-929.29,0.00020195,2]
[321988347,1712674266882,-996.3,0.00020195,2]
[321988348,1712674266891,-1496.23,0.00020195,2]
[321988349,1712674266901,-500.0,0.00020195,2]
[321988350,1712674266912,-500.0,0.00020195,2]
[321988351,1712674266922,-526.7,0.00020195,2]
[321988352,1712674266932,-723.42,0.00020195,2]
[321988353,1712674266946,-755.38,0.00020195,2]
[321988354,1712674266956,-500.0,0.00020195,2]
[321988355,1712674266965,-846.23,0.00020195,2]
[321988356,1712674266976,-1469.96,0.00020195,2]
[321988357,1712674266987,-620.59,0.00020195,2]
[321988358,1712674266997,-912.19,0.00020195,2]
[321988359,1712674267007,-655.82,0.00020195,2]
[321988360,1712674267025,-609.59,0.00020195,2]
[321988361,1712674267034,-838.95,0.00020195,2]
[321988362,1712674267052,-835.18,0.00020195,2]
[321988363,1712674267061,-740.5,0.00020195,2]
[321988364,1712674267072,-778.86,0.00020195,2]
[321988365,1712674267083,-522.35,0.00020195,2]
[321988366,1712674267096,-939.82,0.00020195,2]
[321988367,1712674267108,-1432.79,0.00020195,2]
[321988368,1712674267118,-500.0,0.00020195,2]
[321988369,1712674267129,-986.13,0.00020195,2]
[321988370,1712674267140,-819.33,0.00020195,2]